[Event "*** SCC Grand Prix: Titled Tuesday Blitz"]
[Site "Chess.com"]
[Date "2020.09.08"]
[Round "4"]
[White "CrazyMartian"]
[Black "KarstenHansch"]
[Result "0-1"]
[WhiteElo "2304"]
[BlackElo "2477"]
[TimeControl "180+1"]
[EndTime "10:39:58 PDT"]
[Termination "KarstenHansch won on time"]

1. d4 {[%clk 0:03:00.9]} 1... d5 {[%clk 0:02:59.9]} 2. Bf4 {[%clk 0:02:59.7]}
2... Nf6 {[%clk 0:02:59]} 3. e3 {[%clk 0:02:59.9]} 3... e6 {[%clk 0:02:59.7]} 4.
Nd2 {[%clk 0:03:00.1]} 4... Bd6 {[%clk 0:03:00.3]} 5. Bg3 {[%clk 0:03:00.1]}
5... O-O {[%clk 0:03:00.4]} 6. Ngf3 {[%clk 0:02:59.8]} 6... b6 {[%clk
0:03:00.7]} 7. c3 {[%clk 0:02:57.5]} 7... c5 {[%clk 0:03:00.6]} 8. Bd3 {[%clk
0:02:57.1]} 8... Ba6 {[%clk 0:02:59.6]} 9. Bxa6 {[%clk 0:02:56.2]} 9... Nxa6
{[%clk 0:02:59.6]} 10. Qe2 {[%clk 0:02:55.8]} 10... Nb8 {[%clk 0:02:59]} 11. O-O
{[%clk 0:02:52.3]} 11... Nc6 {[%clk 0:02:58.4]} 12. a3 {[%clk 0:02:52.4]} 12...
Bxg3 {[%clk 0:02:56.4]} 13. hxg3 {[%clk 0:02:52.3]} 13... Qc7 {[%clk 0:02:56.4]}
14. dxc5 {[%clk 0:02:49.9]} 14... bxc5 {[%clk 0:02:56.1]} 15. e4 {[%clk
0:02:50.6]} 15... d4 {[%clk 0:02:54.1]} 16. cxd4 {[%clk 0:02:50.1]} 16... Nxd4
{[%clk 0:02:50.7]} 17. Nxd4 {[%clk 0:02:49.7]} 17... cxd4 {[%clk 0:02:51.6]} 18.
Nf3 {[%clk 0:02:38.6]} 18... e5 {[%clk 0:02:50.8]} 19. Rac1 {[%clk 0:02:32.6]}
19... Qe7 {[%clk 0:02:50.7]} 20. Qb5 {[%clk 0:02:28.9]} 20... Ng4 {[%clk
0:02:46.1]} 21. Qc5 {[%clk 0:02:22.2]} 21... Qe6 {[%clk 0:02:38.4]} 22. Qc4
{[%clk 0:02:04]} 22... Qh6 {[%clk 0:02:28.5]} 23. Rfd1 {[%clk 0:01:48.1]} 23...
Kh8 {[%clk 0:02:27.2]} 24. Qc2 {[%clk 0:01:31.2]} 24... f6 {[%clk 0:02:11.1]}
25. Qd2 {[%clk 0:01:30.6]} 25... Qh5 {[%clk 0:02:09.8]} 26. Rc7 {[%clk
0:01:19.2]} 26... h6 {[%clk 0:02:05.1]} 27. Nh4 {[%clk 0:01:09.9]} 27... g5
{[%clk 0:01:49.2]} 28. Nf3 {[%clk 0:01:09.4]} 28... f5 {[%clk 0:01:46.4]} 29.
Qb4 {[%clk 0:00:51.1]} 29... Rae8 {[%clk 0:00:33.1]} 30. Qb7 {[%clk 0:00:47.7]}
30... Nf6 {[%clk 0:00:30.3]} 31. exf5 {[%clk 0:00:35.4]} 31... e4 {[%clk
0:00:29.4]} 32. g4 {[%clk 0:00:06.1]} 32... Qxg4 {[%clk 0:00:26.5]} 33. Rxd4
{[%clk 0:00:05.6]} 33... Qxf5 {[%clk 0:00:22.5]} 34. Ne1 {[%clk 0:00:03.4]}
34... e3 {[%clk 0:00:20.6]} 35. f3 {[%clk 0:00:03.3]} 35... e2 {[%clk
0:00:20.5]} 36. Rd6 {[%clk 0:00:01.9]} 36... Qb1 {[%clk 0:00:18.9]} 0-1

[Event "*** SCC Grand Prix: Titled Tuesday Blitz"]
[Site "Chess.com"]
[Date "2020.09.08"]
[Round "4"]
[White "Rodchenkov_Vitalij"]
[Black "Spriteball"]
[Result "1-0"]
[WhiteElo "2575"]
[BlackElo "2258"]
[TimeControl "180+1"]
[EndTime "10:39:59 PDT"]
[Termination "Rodchenkov_Vitalij won by resignation"]

1. d4 {[%clk 0:03:00.9]} 1... d5 {[%clk 0:02:59.7]} 2. Nf3 {[%clk 0:03:01.5]}
2... Nf6 {[%clk 0:02:58.9]} 3. c4 {[%clk 0:03:02]} 3... c6 {[%clk 0:02:59]} 4.
e3 {[%clk 0:03:01.7]} 4... e6 {[%clk 0:02:59.1]} 5. b3 {[%clk 0:03:00.8]} 5...
Bb4+ {[%clk 0:02:57.8]} 6. Nbd2 {[%clk 0:02:58.4]} 6... Nbd7 {[%clk 0:02:57.2]}
7. Bd3 {[%clk 0:02:58.1]} 7... O-O {[%clk 0:02:56.8]} 8. O-O {[%clk 0:02:57.9]}
8... b6 {[%clk 0:02:53.7]} 9. Bb2 {[%clk 0:02:57.2]} 9... Bb7 {[%clk 0:02:53.8]}
10. e4 {[%clk 0:02:41.5]} 10... dxe4 {[%clk 0:02:46.9]} 11. Nxe4 {[%clk
0:02:41.1]} 11... Nxe4 {[%clk 0:02:46.5]} 12. Bxe4 {[%clk 0:02:41.3]} 12... Nf6
{[%clk 0:02:47.1]} 13. Bd3 {[%clk 0:02:40.4]} 13... Be7 {[%clk 0:02:44.2]} 14.
Qc2 {[%clk 0:02:39.7]} 14... c5 {[%clk 0:02:41]} 15. dxc5 {[%clk 0:02:31.8]}
15... Bxf3 {[%clk 0:02:40.6]} 16. gxf3 {[%clk 0:02:31.6]} 16... Bxc5 {[%clk
0:02:36]} 17. Rad1 {[%clk 0:02:27.1]} 17... Qe7 {[%clk 0:02:33.1]} 18. Qe2
{[%clk 0:02:02.5]} 18... Rad8 {[%clk 0:02:20.4]} 19. f4 {[%clk 0:02:02.5]} 19...
Qc7 {[%clk 0:01:56.1]} 20. Bxf6 {[%clk 0:01:40.4]} 20... gxf6 {[%clk 0:01:57]}
21. Qh5 {[%clk 0:01:40.3]} 21... f5 {[%clk 0:01:51.8]} 22. Qg5+ {[%clk 0:01:40]}
22... Kh8 {[%clk 0:01:51.1]} 23. Qf6+ {[%clk 0:01:40.1]} 23... Kg8 {[%clk
0:01:49.3]} 24. Kh1 {[%clk 0:01:40.7]} 24... Rfe8 {[%clk 0:01:40]} 25. Qh6
{[%clk 0:01:29.6]} 25... Bd4 {[%clk 0:01:32.1]} 26. Bxf5 {[%clk 0:01:10.3]}
26... Bg7 {[%clk 0:01:12.1]} 27. Qxh7+ {[%clk 0:01:09.5]} 27... Kf8 {[%clk
0:01:11.9]} 28. Rg1 {[%clk 0:00:57]} 28... Rxd1 {[%clk 0:00:47.4]} 29. Qxg7+
{[%clk 0:00:55.9]} 29... Ke7 {[%clk 0:00:47.9]} 30. Rxd1 {[%clk 0:00:45.6]}
30... exf5 {[%clk 0:00:33.5]} 31. Qe5+ {[%clk 0:00:45.1]} 31... Qxe5 {[%clk
0:00:28.9]} 32. fxe5 {[%clk 0:00:45.7]} 32... Ke6 {[%clk 0:00:25.3]} 33. f4
{[%clk 0:00:43.6]} 33... Rg8 {[%clk 0:00:23.5]} 34. h3 {[%clk 0:00:34.8]} 34...
Rg3 {[%clk 0:00:22.1]} 35. Kh2 {[%clk 0:00:33.8]} 35... Rf3 {[%clk 0:00:21.4]}
36. Rd6+ {[%clk 0:00:33.9]} 36... Ke7 {[%clk 0:00:21.4]} 37. Rd4 {[%clk
0:00:34.6]} 37... Rf2+ {[%clk 0:00:21]} 38. Kg3 {[%clk 0:00:34.8]} 38... Rxa2
{[%clk 0:00:21]} 39. b4 {[%clk 0:00:33.1]} 39... a5 {[%clk 0:00:19.3]} 40. bxa5
{[%clk 0:00:32.4]} 40... bxa5 {[%clk 0:00:20.2]} 41. Rd6 {[%clk 0:00:30.7]}
41... a4 {[%clk 0:00:19.3]} 42. Ra6 {[%clk 0:00:30.6]} 42... a3 {[%clk
0:00:18.7]} 43. Kh4 {[%clk 0:00:29.4]} 43... Rc2 {[%clk 0:00:17.3]} 44. Rxa3
{[%clk 0:00:27.8]} 44... Rxc4 {[%clk 0:00:17.5]} 45. Kg5 {[%clk 0:00:28.2]}
45... Rc1 {[%clk 0:00:14.5]} 46. Kxf5 {[%clk 0:00:26.5]} 46... Rh1 {[%clk
0:00:13.7]} 47. Ra7+ {[%clk 0:00:26]} 47... Kf8 {[%clk 0:00:12.4]} 48. Kf6
{[%clk 0:00:26.6]} 1-0

[Event "*** SCC Grand Prix: Titled Tuesday Blitz"]
[Site "Chess.com"]
[Date "2020.09.08"]
[Round "4"]
[White "KiranManisha"]
[Black "RestartingChess"]
[Result "1-0"]
[WhiteElo "2274"]
[BlackElo "2422"]
[TimeControl "180+1"]
[EndTime "10:40:01 PDT"]
[Termination "KiranManisha won by checkmate"]

1. e4 {[%clk 0:03:00.9]} 1... Nf6 {[%clk 0:02:58.7]} 2. e5 {[%clk 0:03:00.8]}
2... Nd5 {[%clk 0:02:58]} 3. d4 {[%clk 0:03:01.7]} 3... d6 {[%clk 0:02:58.1]} 4.
c4 {[%clk 0:03:02.6]} 4... Nb6 {[%clk 0:02:58.6]} 5. exd6 {[%clk 0:03:03]} 5...
exd6 {[%clk 0:02:59]} 6. Nc3 {[%clk 0:03:03.4]} 6... Be7 {[%clk 0:02:58.9]} 7.
Nf3 {[%clk 0:03:03.2]} 7... O-O {[%clk 0:02:59.1]} 8. Be2 {[%clk 0:03:02.9]}
8... Bf5 {[%clk 0:02:59.2]} 9. O-O {[%clk 0:03:02]} 9... Bf6 {[%clk 0:02:59.4]}
10. h3 {[%clk 0:02:58]} 10... Nc6 {[%clk 0:02:58.8]} 11. b3 {[%clk 0:02:58.1]}
11... Re8 {[%clk 0:02:56.7]} 12. Be3 {[%clk 0:02:57.5]} 12... d5 {[%clk
0:02:56.4]} 13. c5 {[%clk 0:02:57.2]} 13... Nc8 {[%clk 0:02:56.7]} 14. Rc1
{[%clk 0:02:54.5]} 14... a6 {[%clk 0:02:56.6]} 15. Qd2 {[%clk 0:02:54.1]} 15...
N8e7 {[%clk 0:02:56.2]} 16. g4 {[%clk 0:02:50.6]} 16... Be4 {[%clk 0:02:54.2]}
17. g5 {[%clk 0:02:50.5]} 17... Nf5 {[%clk 0:02:36.4]} 18. gxf6 {[%clk
0:02:46.5]} 18... Qxf6 {[%clk 0:02:37.3]} 19. Nxe4 {[%clk 0:02:35.4]} 19... dxe4
{[%clk 0:02:37.4]} 20. Nh2 {[%clk 0:02:30.7]} 20... Nfxd4 {[%clk 0:02:28.4]} 21.
Kh1 {[%clk 0:02:24.5]} 21... Rad8 {[%clk 0:02:26]} 22. Qb2 {[%clk 0:02:11.9]}
22... Qh4 {[%clk 0:02:25.1]} 23. Rg1 {[%clk 0:02:07.1]} 23... f6 {[%clk
0:02:05.6]} 24. Rg3 {[%clk 0:01:56.4]} 24... Nf5 {[%clk 0:01:53]} 25. Rg4 {[%clk
0:01:48.8]} 25... Qxh3 {[%clk 0:01:52.3]} 26. Rcg1 {[%clk 0:01:21.3]} 26... Ne5
{[%clk 0:01:42]} 27. R4g3 {[%clk 0:00:57.8]} 27... Nxg3+ {[%clk 0:01:38.4]} 28.
Rxg3 {[%clk 0:00:58.7]} 28... Qh4 {[%clk 0:01:34.2]} 29. Qc2 {[%clk 0:00:58]}
29... Rd7 {[%clk 0:01:19.4]} 30. Kg2 {[%clk 0:00:45]} 30... f5 {[%clk
0:01:09.8]} 31. Bg5 {[%clk 0:00:41.4]} 31... Qxg3+ {[%clk 0:01:02.5]} 32. Kxg3
{[%clk 0:00:40.8]} 32... h6 {[%clk 0:01:03.4]} 33. Bf4 {[%clk 0:00:40.7]} 33...
Nd3 {[%clk 0:01:03.2]} 34. Bh5 {[%clk 0:00:39.5]} 34... g6 {[%clk 0:00:53]} 35.
Qc4+ {[%clk 0:00:36.8]} 35... Kh7 {[%clk 0:00:45.2]} 36. Be2 {[%clk 0:00:34]}
36... g5 {[%clk 0:00:39.9]} 37. Be3 {[%clk 0:00:32.6]} 37... f4+ {[%clk
0:00:39.8]} 38. Kg2 {[%clk 0:00:32.6]} 38... fxe3 {[%clk 0:00:38.7]} 39. fxe3
{[%clk 0:00:33.5]} 39... Rf8 {[%clk 0:00:29.9]} 40. Qxe4+ {[%clk 0:00:31.8]}
40... Kg7 {[%clk 0:00:27.1]} 41. Bxd3 {[%clk 0:00:32.1]} 41... Rfd8 {[%clk
0:00:26]} 42. Qh7+ {[%clk 0:00:28.2]} 42... Kf6 {[%clk 0:00:26.1]} 43. Qg6+
{[%clk 0:00:27.1]} 43... Ke7 {[%clk 0:00:26.6]} 44. Bf5 {[%clk 0:00:25.4]} 44...
Rd2+ {[%clk 0:00:26.8]} 45. Kg3 {[%clk 0:00:25.7]} 45... h5 {[%clk 0:00:15.6]}
46. Qg7+ {[%clk 0:00:24.8]} 46... Ke8 {[%clk 0:00:13.4]} 47. Bg6# {[%clk
0:00:25]} 1-0

[Event "*** SCC Grand Prix: Titled Tuesday Blitz"]
[Site "Chess.com"]
[Date "2020.09.08"]
[Round "4"]
[White "Oleksandr_Bortnyk"]
[Black "kuban1991"]
[Result "1-0"]
[WhiteElo "2938"]
[BlackElo "2745"]
[TimeControl "180+1"]
[EndTime "10:40:02 PDT"]
[Termination "Oleksandr_Bortnyk won on time"]

1. d4 {[%clk 0:03:00.9]} 1... g6 {[%clk 0:02:59.3]} 2. Nc3 {[%clk 0:02:58.8]}
2... Bg7 {[%clk 0:02:59.7]} 3. Bf4 {[%clk 0:02:56.7]} 3... d5 {[%clk 0:02:57.8]}
4. e3 {[%clk 0:02:56.1]} 4... Nf6 {[%clk 0:02:57.6]} 5. h4 {[%clk 0:02:56.5]}
5... h6 {[%clk 0:02:50.9]} 6. Be2 {[%clk 0:02:53.1]} 6... c6 {[%clk 0:02:49.7]}
7. g4 {[%clk 0:02:32.4]} 7... Nbd7 {[%clk 0:02:47.5]} 8. a4 {[%clk 0:01:56.3]}
8... a5 {[%clk 0:02:45.1]} 9. Nh3 {[%clk 0:01:30.8]} 9... Qb6 {[%clk 0:02:36.5]}
10. Ra3 {[%clk 0:01:23.7]} 10... Ne4 {[%clk 0:02:11.8]} 11. Rb3 {[%clk
0:01:08.6]} 11... Qd8 {[%clk 0:02:05.3]} 12. Nxe4 {[%clk 0:01:00.1]} 12... dxe4
{[%clk 0:02:06.2]} 13. Bg3 {[%clk 0:01:00]} 13... e5 {[%clk 0:01:45.9]} 14. c3
{[%clk 0:00:51.5]} 14... Qe7 {[%clk 0:01:38.6]} 15. Qc2 {[%clk 0:00:46.9]} 15...
exd4 {[%clk 0:01:33.5]} 16. cxd4 {[%clk 0:00:47.8]} 16... Nf6 {[%clk 0:01:29.2]}
17. Be5 {[%clk 0:00:46.5]} 17... O-O {[%clk 0:01:00.9]} 18. g5 {[%clk
0:00:42.5]} 18... hxg5 {[%clk 0:00:51.6]} 19. hxg5 {[%clk 0:00:43.4]} 19... Nd5
{[%clk 0:00:45.3]} 20. Qxe4 {[%clk 0:00:41.8]} 20... Bf5 {[%clk 0:00:42.9]} 21.
Qh4 {[%clk 0:00:40.1]} 21... Bxe5 {[%clk 0:00:42.9]} 22. Nf4 {[%clk 0:00:37.6]}
22... Rfd8 {[%clk 0:00:33.2]} 23. Nxd5 {[%clk 0:00:21.5]} 23... Rxd5 {[%clk
0:00:33.7]} 24. dxe5 {[%clk 0:00:20.9]} 24... Qxe5 {[%clk 0:00:22.1]} 25. Qh7+
{[%clk 0:00:20.9]} 25... Kf8 {[%clk 0:00:22.7]} 26. Qh8+ {[%clk 0:00:21.8]}
26... Ke7 {[%clk 0:00:23.1]} 27. Qxa8 {[%clk 0:00:22.7]} 27... Qe4 {[%clk
0:00:15.4]} 28. Rxb7+ {[%clk 0:00:18.5]} 28... Bd7 {[%clk 0:00:15.8]} 29. Rxd7+
{[%clk 0:00:05.8]} 29... Rxd7 {[%clk 0:00:16.7]} 30. O-O {[%clk 0:00:04.3]}
30... Rd5 {[%clk 0:00:09.5]} 31. Qa7+ {[%clk 0:00:04.8]} 31... Kf8 {[%clk
0:00:08.9]} 32. f4 {[%clk 0:00:05.3]} 32... c5 {[%clk 0:00:07.8]} 33. Kf2 {[%clk
0:00:04]} 33... Kg7 {[%clk 0:00:06]} 34. Qxa5 {[%clk 0:00:04]} 34... f6 {[%clk
0:00:02.2]} 35. Qc3 {[%clk 0:00:04.3]} 35... Rf5 {[%clk 0:00:01.5]} 36. Bd3
{[%clk 0:00:04.6]} 1-0

[Event "*** SCC Grand Prix: Titled Tuesday Blitz"]
[Site "Chess.com"]
[Date "2020.09.08"]
[Round "4"]
[White "maximnovik"]
[Black "sergiochess83"]
[Result "0-1"]
[WhiteElo "2516"]
[BlackElo "2837"]
[TimeControl "180+1"]
[EndTime "10:40:02 PDT"]
[Termination "sergiochess83 won on time"]

1. c4 {[%clk 0:03:00.9]} 1... e5 {[%clk 0:02:59.4]} 2. g3 {[%clk 0:03:00.4]}
2... Nf6 {[%clk 0:02:58.6]} 3. Bg2 {[%clk 0:03:00.8]} 3... c6 {[%clk 0:02:59.2]}
4. Nf3 {[%clk 0:03:00]} 4... e4 {[%clk 0:02:57.8]} 5. Nd4 {[%clk 0:03:00.4]}
5... d5 {[%clk 0:02:56.8]} 6. cxd5 {[%clk 0:03:00.2]} 6... Qxd5 {[%clk
0:02:57.6]} 7. Nc2 {[%clk 0:02:56.3]} 7... Qh5 {[%clk 0:02:55]} 8. Nc3 {[%clk
0:02:43.6]} 8... Bh3 {[%clk 0:02:54.1]} 9. O-O {[%clk 0:02:34.7]} 9... Ng4
{[%clk 0:01:10.4]} 10. f3 {[%clk 0:02:34]} 10... Bc5+ {[%clk 0:01:09.6]} 11. e3
{[%clk 0:02:28.6]} 11... Bxg2 {[%clk 0:01:04.5]} 12. fxg4 {[%clk 0:02:25.4]}
12... Qh3 {[%clk 0:01:05.1]} 13. Rf2 {[%clk 0:02:22.3]} 13... Bf3 {[%clk
0:00:56.8]} 14. Rxf3 {[%clk 0:02:14]} 14... exf3 {[%clk 0:00:57.7]} 15. Qxf3
{[%clk 0:02:14.1]} 15... O-O {[%clk 0:00:58.3]} 16. d4 {[%clk 0:02:13.7]} 16...
Be7 {[%clk 0:00:57]} 17. e4 {[%clk 0:02:09.8]} 17... Nd7 {[%clk 0:00:55.1]} 18.
e5 {[%clk 0:01:37.8]} 18... h5 {[%clk 0:00:51.8]} 19. gxh5 {[%clk 0:01:34.7]}
19... f6 {[%clk 0:00:52.4]} 20. Bf4 {[%clk 0:01:18.3]} 20... fxe5 {[%clk
0:00:47.8]} 21. dxe5 {[%clk 0:01:18.2]} 21... Bc5+ {[%clk 0:00:41.7]} 22. Kh1
{[%clk 0:01:15.1]} 22... Nxe5 {[%clk 0:00:40.9]} 23. Qg2 {[%clk 0:00:53.5]}
23... Qxg2+ {[%clk 0:00:36.7]} 24. Kxg2 {[%clk 0:00:53.3]} 24... Nd3 {[%clk
0:00:37.6]} 25. Rf1 {[%clk 0:00:38.3]} 25... Rae8 {[%clk 0:00:33.1]} 26. Rf3
{[%clk 0:00:32.8]} 26... Nxf4+ {[%clk 0:00:27.3]} 27. gxf4 {[%clk 0:00:32.5]}
27... Rf5 {[%clk 0:00:27.5]} 28. b4 {[%clk 0:00:31.2]} 28... Bb6 {[%clk
0:00:26.6]} 29. a4 {[%clk 0:00:23.7]} 29... Bc7 {[%clk 0:00:20.3]} 30. Kg3
{[%clk 0:00:20.5]} 30... Rxh5 {[%clk 0:00:17.7]} 31. h4 {[%clk 0:00:18.7]} 31...
Rh6 {[%clk 0:00:16.4]} 32. Nd4 {[%clk 0:00:15.5]} 32... Rg6+ {[%clk 0:00:13.7]}
33. Kh3 {[%clk 0:00:14.2]} 33... Rf6 {[%clk 0:00:13.7]} 34. f5 {[%clk
0:00:13.7]} 34... Be5 {[%clk 0:00:09.7]} 35. Nce2 {[%clk 0:00:12.5]} 35... Bxd4
{[%clk 0:00:09.6]} 36. Nxd4 {[%clk 0:00:12.1]} 36... Re4 {[%clk 0:00:10.3]} 37.
Rd3 {[%clk 0:00:09.7]} 37... Rd6 {[%clk 0:00:09.5]} 0-1

[Event "*** SCC Grand Prix: Titled Tuesday Blitz"]
[Site "Chess.com"]
[Date "2020.09.08"]
[Round "4"]
[White "Sofiia_Hryzlova"]
[Black "ARMQUEEN"]
[Result "0-1"]
[WhiteElo "2281"]
[BlackElo "2457"]
[TimeControl "180+1"]
[EndTime "10:40:02 PDT"]
[Termination "ARMQUEEN won by checkmate"]

1. c4 {[%clk 0:03:00.9]} 1... c5 {[%clk 0:02:53.1]} 2. Nf3 {[%clk 0:03:00]} 2...
Nc6 {[%clk 0:02:50.6]} 3. Nc3 {[%clk 0:02:56.8]} 3... Nf6 {[%clk 0:02:50.7]} 4.
e3 {[%clk 0:02:56]} 4... g6 {[%clk 0:02:50.5]} 5. d4 {[%clk 0:02:51.5]} 5...
cxd4 {[%clk 0:02:49.8]} 6. exd4 {[%clk 0:02:51.4]} 6... d5 {[%clk 0:02:50.3]} 7.
cxd5 {[%clk 0:02:50.7]} 7... Nxd5 {[%clk 0:02:49.9]} 8. Qb3 {[%clk 0:02:50.8]}
8... Nxc3 {[%clk 0:02:34.4]} 9. Bc4 {[%clk 0:02:50]} 9... e6 {[%clk 0:02:05.9]}
10. bxc3 {[%clk 0:02:47.5]} 10... Na5 {[%clk 0:01:57]} 11. Bb5+ {[%clk
0:02:42.5]} 11... Bd7 {[%clk 0:01:56.6]} 12. Qb1 {[%clk 0:02:37.7]} 12... Bd6
{[%clk 0:01:45.7]} 13. Bh6 {[%clk 0:02:33.2]} 13... Rc8 {[%clk 0:01:42.4]} 14.
O-O {[%clk 0:02:26]} 14... Rxc3 {[%clk 0:01:31.7]} 15. Bxd7+ {[%clk 0:02:13.7]}
15... Qxd7 {[%clk 0:01:27.6]} 16. Bd2 {[%clk 0:01:58]} 16... Rxf3 {[%clk
0:01:26.7]} 17. gxf3 {[%clk 0:01:51.7]} 17... Nc4 {[%clk 0:01:26.2]} 18. Bg5
{[%clk 0:01:48]} 18... O-O {[%clk 0:01:20]} 19. Qd3 {[%clk 0:01:44.5]} 19... Nb6
{[%clk 0:01:17.4]} 20. Bf6 {[%clk 0:01:41.8]} 20... Nd5 {[%clk 0:01:16.9]} 21.
Be5 {[%clk 0:01:37.5]} 21... Bxe5 {[%clk 0:01:08.4]} 22. dxe5 {[%clk 0:01:37.1]}
22... Qe7 {[%clk 0:01:08.2]} 23. Qd2 {[%clk 0:01:30.3]} 23... Qh4 {[%clk
0:01:06.3]} 24. Kh1 {[%clk 0:01:27.8]} 24... Qh3 {[%clk 0:01:04.4]} 25. Qd1
{[%clk 0:01:10.1]} 25... Rc8 {[%clk 0:00:55.6]} 26. Rg1 {[%clk 0:01:08.4]} 26...
Rc4 {[%clk 0:00:44]} 27. Rg3 {[%clk 0:01:06.5]} 27... Qh6 {[%clk 0:00:39.3]} 28.
Qg1 {[%clk 0:00:55.1]} 28... Qf4 {[%clk 0:00:36.9]} 29. Rb1 {[%clk 0:00:49.7]}
29... b6 {[%clk 0:00:32.6]} 30. Re1 {[%clk 0:00:45.8]} 30... Qf5 {[%clk
0:00:28.5]} 31. Qf1 {[%clk 0:00:41.8]} 31... Rh4 {[%clk 0:00:26.4]} 32. Qa6
{[%clk 0:00:31.9]} 32... Qh5 {[%clk 0:00:23.5]} 33. Rg2 {[%clk 0:00:23.7]} 33...
Nf4 {[%clk 0:00:22.3]} 34. Qc8+ {[%clk 0:00:20.4]} 34... Kg7 {[%clk 0:00:22]}
35. Qd8 {[%clk 0:00:20.1]} 35... Nxg2 {[%clk 0:00:19]} 36. Qf6+ {[%clk
0:00:19.5]} 36... Kh6 {[%clk 0:00:19.2]} 37. Kxg2 {[%clk 0:00:19.6]} 37... Rxh2+
{[%clk 0:00:18.8]} 38. Kf1 {[%clk 0:00:20]} 38... Rh4 {[%clk 0:00:12]} 39. Re3
{[%clk 0:00:17.6]} 39... Qf5 {[%clk 0:00:10.6]} 40. Qh8 {[%clk 0:00:16.4]} 40...
Qb1+ {[%clk 0:00:09.8]} 41. Kg2 {[%clk 0:00:16.2]} 41... Qh1+ {[%clk 0:00:09.3]}
42. Kg3 {[%clk 0:00:16.4]} 42... Qh2# {[%clk 0:00:10]} 0-1

[Event "*** SCC Grand Prix: Titled Tuesday Blitz"]
[Site "Chess.com"]
[Date "2020.09.08"]
[Round "4"]
[White "PawnEatingZombie"]
[Black "markberk"]
[Result "1-0"]
[WhiteElo "2162"]
[BlackElo "2371"]
[TimeControl "180+1"]
[EndTime "10:40:02 PDT"]
[Termination "PawnEatingZombie won by resignation"]

1. d4 {[%clk 0:03:00.9]} 1... Nf6 {[%clk 0:02:58.8]} 2. c4 {[%clk 0:03:00.8]}
2... e6 {[%clk 0:02:58.3]} 3. Nc3 {[%clk 0:03:01.3]} 3... Bb4 {[%clk 0:02:57.5]}
4. Qc2 {[%clk 0:03:01.8]} 4... d5 {[%clk 0:02:56.1]} 5. cxd5 {[%clk 0:03:01.2]}
5... exd5 {[%clk 0:02:54.9]} 6. Bf4 {[%clk 0:02:59.9]} 6... O-O {[%clk
0:02:52.8]} 7. e3 {[%clk 0:02:59.3]} 7... c5 {[%clk 0:02:52.7]} 8. dxc5 {[%clk
0:03:00.2]} 8... Nc6 {[%clk 0:02:49.8]} 9. Nf3 {[%clk 0:02:59.5]} 9... d4 {[%clk
0:02:31.1]} 10. O-O-O {[%clk 0:02:57.2]} 10... Bxc3 {[%clk 0:02:30]} 11. bxc3
{[%clk 0:02:52.6]} 11... d3 {[%clk 0:02:21.1]} 12. Bxd3 {[%clk 0:02:44.2]} 12...
Qa5 {[%clk 0:02:20.9]} 13. Bd6 {[%clk 0:02:29.9]} 13... Re8 {[%clk 0:02:16.1]}
14. Kb1 {[%clk 0:02:26.5]} 14... Be6 {[%clk 0:02:10.1]} 15. Ka1 {[%clk
0:02:19.7]} 15... b6 {[%clk 0:02:07.3]} 16. Nd4 {[%clk 0:02:10.8]} 16... Rac8
{[%clk 0:01:55.6]} 17. Nb3 {[%clk 0:01:41.3]} 17... Qa3 {[%clk 0:01:48.8]} 18.
cxb6 {[%clk 0:01:28.1]} 18... Qa4 {[%clk 0:01:44.1]} 19. b7 {[%clk 0:01:23.3]}
19... Rcd8 {[%clk 0:01:40.2]} 20. Bg3 {[%clk 0:00:59.6]} 20... Nd5 {[%clk
0:01:29.2]} 21. Nd4 {[%clk 0:00:51.9]} 21... Qa3 {[%clk 0:01:13.6]} 22. Nxc6
{[%clk 0:00:46.9]} 22... Nxc3 {[%clk 0:01:13.5]} 23. Qb2 {[%clk 0:00:22.5]}
23... Qc5 {[%clk 0:01:11.1]} 24. Nxd8 {[%clk 0:00:20.1]} 24... Na4 {[%clk
0:01:00.7]} 25. b8=Q {[%clk 0:00:16.6]} 25... Nxb2 {[%clk 0:00:54.8]} 26. Nxe6
{[%clk 0:00:11.2]} 26... Qe7 {[%clk 0:00:42.2]} 27. Qxb2 {[%clk 0:00:10.4]}
27... Qxe6 {[%clk 0:00:40.5]} 28. Qb3 {[%clk 0:00:09.6]} 28... Qf6+ {[%clk
0:00:39.7]} 29. Qb2 {[%clk 0:00:08.9]} 29... Qe6 {[%clk 0:00:39.2]} 30. Rc1
{[%clk 0:00:08.6]} 30... h6 {[%clk 0:00:37.7]} 31. Bc4 {[%clk 0:00:08.4]} 31...
Qg4 {[%clk 0:00:35.6]} 32. Be5 {[%clk 0:00:06.7]} 32... Qg5 {[%clk 0:00:32.2]}
33. Bd4 {[%clk 0:00:06.5]} 33... h5 {[%clk 0:00:21.9]} 34. Qb3 {[%clk 0:00:07]}
34... Qg6 {[%clk 0:00:20.6]} 35. Bxf7+ {[%clk 0:00:07.9]} 35... Qxf7 {[%clk
0:00:19.7]} 36. Qxf7+ {[%clk 0:00:08.8]} 36... Kxf7 {[%clk 0:00:19.9]} 37. Rc7+
{[%clk 0:00:08.8]} 37... Ke6 {[%clk 0:00:19.5]} 38. Rxa7 {[%clk 0:00:09.7]}
38... Kd5 {[%clk 0:00:19.7]} 39. Rb7 {[%clk 0:00:10.3]} 39... Rc8 {[%clk
0:00:19.1]} 40. Rb2 {[%clk 0:00:09.8]} 40... Rc4 {[%clk 0:00:18.7]} 41. a3
{[%clk 0:00:10.1]} 41... Ke6 {[%clk 0:00:18.9]} 42. Ra2 {[%clk 0:00:10.6]} 42...
Kf5 {[%clk 0:00:18.6]} 43. a4 {[%clk 0:00:11.2]} 43... Rc6 {[%clk 0:00:18.7]}
44. a5 {[%clk 0:00:11.8]} 44... Ra6 {[%clk 0:00:18.6]} 45. Rb1 {[%clk
0:00:12.4]} 1-0